Workbook

Sheet 2026 4 четверть
B3: "Согласовано" | I3: "Утверждаю"
B4: Директор МАОУ " Инженерный лицей" | I4: Директор ООО "Татнефть-УРС"
B5: __________Н.Н. Шакирова | I5: _______________Т.М.Мишанова
B6: "___"__________2026г. | I6: "__"___________2026г.
B8: ПРИМЕРНОЕ ДВУХНЕДЕЛЬНОЕ МЕНЮ ДЛЯ ОБУЧАЮЩИХСЯ В ОБЩЕОБРАЗОВАТЕЛЬНЫХ ОРГАНИЗАЦИЯХ С 1 по 4 КЛАССЫ на март, апрель, май 2026г.
A10: № рецептуры | B10: Наименование блюд | C10: Выход,г | D10: Белки, г | E10: Жиры, г | F10: Углеводы, г | G10: Калорийность, ккал | H10: Витамин B1, мг | I10: Витамин С, мг | J10: Витамин А, мг | K10: Витамин Е, мг | L10: Ca, мг | M10: P, мг | N10: Mg, мг | O10: Fe, мг
B11: 1-ая неделя
B12: 1 день
A13: Зим состав и кал рос прод пит, табл 9, стр 144, 2012 | B13: Фрукты (яблоко) | C13: 100 | D13: 0.4 | E13: 0.4 | F13: 9.8 | G13: 47 | H13: 0.03 | I13: 10 | J13: 0 | K13: 0.2 | L13: 16 | M13: 11 | N13: 9 | O13: 2.2
B14: Тефтели рыбные(минтай) с соусом | C14: 75/50 | D14: 11.800 | E14: 10.000 | F14: 13.200 | G14: 191 | H14: 0.100 | I14: 2.84 | J14: 0.000 | K14: 0.000 | L14: 27.800 | M14: 0.000 | N14: 20.600 | O14: 0.730
A15: № 463/3 сб.рец. 1996 | B15: Каша гречневая с маслом сливочным | C15: 150/5 | D15: 5.10 | E15: 2.85 | F15: 31.96 | G15: 176.10 | H15: 0.06 | I15: 0.00 | J15: 12.00 | K15: 0.80 | L15: 11.91 | M15: 38.07 | N15: 8.62 | O15: 0.86
A16: № 639 Сбор.рец. Шк. 2004 Поляковский Ю.И. 2011 | B16: Компот из смеси сухофруктов | C16: 200 | D16: 1.00 | E16: 0.05 | F16: 27.50 | G16: 110.00 | H16: 0.01 | I16: 0.32 | J16: 0.00 | K16: 0.00 | L16: 28.69 | M16: 0.00 | N16: 18.27 | O16: 0.61
A17: Хим.состав и калорийность российских продуктов питания,табл 6, стр 144 , 2012 Дели + | B17: Хлеб ржаной | C17: 20/20 | D17: 3.04 | E17: 0.32 | F17: 19.68 | G17: 78.24 | H17: 0.04 | I17: 0.00 | J17: 0.00 | K17: 0.44 | L17: 8.00 | M17: 26.00 | N17: 5.60 | O17: 0.44
B18: Итого: | C18: 570 | D18: =SUM(D13:D17) -> 21.34 | E18: 13.62 | F18: 102.14 | G18: 602.34 | H18: 0.24 | I18: 13.16 | J18: 12.00 | K18: 1.44 | L18: 92.40 | M18: 75.07 | N18: 62.09 | O18: 4.84
B20: 2 день
A21: № 15 Сбор.рец. На прод-ию для обуч. Во всех образ.учреж-Дели -2017 | B21: Салат из свеклы с растительным маслом | C21: 60 | D21: 0.79 | E21: 1.95 | F21: 3.88 | G21: 36.24 | H21: 0.01 | I21: 10.26 | J21: 0.00 | K21: 5.03 | L21: 14.98 | M21: 16.98 | N21: 9.05 | O21: 0.28
A22: Сб.рец. №481-1997 | B22: Фрикадельки (гов) с томатным соусом | C22: 55/50 | D22: 9.800 | E22: 6.800 | F22: 8.200 | G22: 130 | H22: 0.050 | I22: 0.070 | J22: 0.8 | K22: 1.400 | L22: 18.710 | M22: 44.800 | N22: 14.040 | O22: 0.590
A23: № 312 Сбор.рец. На прод-ию для обуч. Во всех образ.учреж-Дели -2017 | B23: Пюре картофельное с маслом сливочным | C23: 150/5 | D23: 3.13 | E23: 8.43 | F23: 20.51 | G23: 170.25 | H23: 0.14 | I23: 18.16 | J23: 20.00 | K23: 0.23 | L23: 38.18 | M23: 88.10 | N23: 27.75 | O23: 1.02
A24: № 12 Сбор.рец. Шк. 2004 Поляковский Ю.И. 2011 | B24: Чай с сахаром и лимоном | C24: 200/7/7 | D24: 0.20 | E24: 0.03 | F24: 9.30 | G24: 37.00 | H24: 0.00 | I24: 1.12 | J24: 0.00 | K24: 0.00 | L24: 2.73 | M24: 0.00 | N24: 0.73 | O24: 0.06
A25: Хим.состав и калорийность российских продуктов питания табл 6 стр 134 , 2012 Дели + | B25: Хлеб пшеничный | C25: 25 | D25: 3.04 | E25: 0.32 | F25: 19.68 | G25: 58.45 | H25: 0.04 | I25: 0.00 | J25: 0.00 | K25: 0.44 | L25: 8.00 | M25: 26.00 | N25: 5.60 | O25: 0.44
A26: Хим.состав и калорийность российских продуктов питания,табл 6, стр 144 , 2012 Дели + | B26: Хлеб ржаной | C26: 20 | D26: 3.04 | E26: 0.32 | F26: 19.68 | G26: 39.12 | H26: 0.04 | I26: 0.00 | J26: 0.00 | K26: 0.44 | L26: 8.00 | M26: 26.00 | N26: 5.60 | O26: 0.44
B27: Итого: | C27: 565 | D27: =SUM(D21:D26) -> 20.00 | E27: =SUM(E21:E26) -> 17.85 | F27: 81.25 | G27: 471.46 | H27: 0.29 | I27: 29.61 | J27: 20.80 | K27: 7.55 | L27: 90.60 | M27: 201.88 | N27: 62.77 | O27: 2.83
B28: 3 день
A29: Зим состав и кал рос прод пит, табл 9, стр 144, 2012 | B29: Фрукты (яблоко) | C29: 100 | D29: 0.4 | E29: 0.4 | F29: 9.8 | G29: 47 | H29: 0.03 | I29: 10 | J29: 0 | K29: 0.2 | L29: 16 | M29: 11 | N29: 9 | O29: 2.2
A30: № 15 Сбор.рец. На прод-ию для обуч. Во всех образ.учреж-Дели -2017 | B30: Сыр порционно | C30: 15 | D30: 2.63 | E30: 2.66 | F30: 0.00 | G30: 34.33 | H30: 0.00 | I30: 0.07 | J30: 21.00 | K30: 0.04 | L30: 100.00 | M30: 60.00 | N30: 5.50 | O30: 0.07
A31: рец.сб №1 сб.шк. 2004г Поляковский Ю.И. 2011г. | B31: Бутерброд с маслом | C31: 30/10 | D31: 2.40 | E31: 8.60 | F31: 14.60 | G31: 146.00 | H31: 0.05 | I31: 0.00 | J31: 0.00 | K31: 0.00 | L31: 8.10 | M31: 0.00 | N31: 9.90 | O31: 0.62
A32: № 311 Сбор.рец. На прод-ию для обуч. Во всех образ.учреж-Дели 2017 | B32: Каша молочная рисовая с маслом | C32: 200/5 | D32: 4.580 | E32: 5.007 | F32: 20.522 | G32: 145.50 | H32: 0.116 | I32: 0.000 | J32: 0.000 | K32: 0.344 | L32: 8.445 | M32: 108.870 | N32: 72.030 | O32: 2.423
A33: № 12 Сбор.рец.2004 Шк. Поляковский Ю.И. 2011 | B33: Чай с сахаром и молоком | C33: 150/50/7 | D33: 1.40 | E33: 1.40 | F33: 11.20 | G33: 61.00 | H33: 0.01 | I33: 0.26 | J33: 0.00 | K33: 0.00 | L33: 53.06 | M33: 0.00 | N33: 6.03 | O33: 0.07
A34: Хим.состав и калорийность российских продуктов питания,табл 6, стр 144 , 2012 Дели + | B34: Хлеб пшеничный | C34: 25 | D34: 1.320 | E34: 0.24 | F34: 7.920 | G34: 58 | H34: 0.034 | I34: 0 | J34: 0 | K34: 0.280 | L34: 5.800 | M34: 30.000 | N34: 9.400 | O34: 0.780
A35: Хим.состав и калорийность российских продуктов питания,табл 6, стр 144 , 2012 Дели + | B35: Хлеб ржаной | C35: 20 | D35: 3.04 | E35: 0.32 | F35: 19.68 | G35: 39.12 | H35: 0.04 | I35: 0.00 | J35: 0.00 | K35: 0.44 | L35: 8.00 | M35: 26.00 | N35: 5.60 | O35: 0.44
B36: Итого: | C36: 570 | D36: =SUM(D29:D34) -> 12.73 | E36: 18.31 | F36: 64.04 | G36: =SUM(G29:G35) -> 531.40 | H36: 0.24 | I36: 10.33 | J36: 21.00 | K36: 0.86 | L36: 191.41 | M36: 209.87 | N36: 111.86 | O36: 6.16
B38: 4 день
A39: № 71 Сбор.рец. На прод-ию для обуч. Во всех образ.учреж-Дели -2017 | B39: Винегрет овощной с зеленым горошком | C39: 60 | D39: 0.80 | E39: 1.40 | F39: 4.30 | G39: 33.00 | H39: 0.02 | I39: 3.11 | J39: 0.00 | K39: 0.00 | L39: 13.94 | M39: 0.00 | N39: 9.70 | O39: 0.41
B40: Биточки рыбные из минтая | C40: 90 | D40: 7.260 | E40: 4.770 | F40: 6.74 | G40: 131 | H40: 0.060 | I40: 0.540 | J40: 0.110 | K40: 0.730 | L40: 49.520 | M40: 154.190 | N40: 13.500 | O40: 0.000
A41: № 224 сб. шк. 2004 | B41: Рагу из овощей | C41: 150/5 | D41: 5.62 | E41: 5.04 | F41: 34.99 | G41: 208.50 | H41: 0.50 | I41: 0.00 | J41: 20.00 | K41: 0.50 | L41: 94.11 | M41: 212.33 | N41: 61.70 | O41: 4.72
A42: № 13 Сбор. Шк. 2004 Поляковский Ю.И. 2011 | B42: Кофейный напиток | C42: 200 | D42: 2.80 | E42: 2.80 | F42: 14.70 | G42: 93.00 | H42: 0.02 | I42: 0.39 | J42: 0.00 | K42: 0.00 | L42: 79.40 | M42: 0.00 | N42: 9.14 | O42: 0.08
A43: Хим.состав и калорийность российских продуктов питания табл 6 стр 134 , 2012 Дели + | B43: Хлеб пшеничный | C43: 25 | D43: 1.520 | E43: 0.160 | F43: 9.840 | G43: 58 | H43: 0.022 | I43: 0 | J43: 0 | K43: 0.220 | L43: 4.000 | M43: 13.000 | N43: 2.800 | O43: 0.220
A44: Хим.состав и калорийность российских продуктов питания,табл 6, стр 144 , 2012 Дели + | B44: Хлеб ржаной | C44: 20/20 | D44: 3.04 | E44: 0.32 | F44: 19.68 | G44: 39.12 | H44: 0.04 | I44: 0.00 | J44: 0.00 | K44: 0.44 | L44: 8.00 | M44: 26.00 | N44: 5.60 | O44: 0.44
B45: Итого: | C45: 590 | D45: =SUM(D39:D44) -> 21.04 | E45: =SUM(E39:E44) -> 14.49 | F45: 90.25 | G45: 562.57 | H45: 0.66 | I45: 4.04 | J45: 20.11 | K45: 1.89 | L45: 248.97 | M45: 405.52 | N45: 102.44 | O45: 5.87
B47: 5 день
A48: Зим состав и кал рос прод пит, табл 9, стр 144, 2012 | B48: Фрукты (яблоко) | C48: 100 | D48: 0.40 | E48: 0.40 | F48: 9.80 | G48: 47.00 | H48: 0.03 | I48: 10.00 | J48: 0.00 | K48: 0.20 | L48: 16.00 | M48: 11.00 | N48: 9.00 | O48: 2.20
A49: № 293 Сбор.рец. На прод-ию для обуч. Во всех образ.учреж-Дели 2017, 366/2016 | B49: Цыплята запеченные | C49: 100 | D49: 13.33 | E49: 11.16 | F49: 9.56 | G49: 216.78 | H49: 0.11 | I49: 3.38 | J49: 72.13 | K49: 1.89 | L49: 52.83 | M49: 180.01 | N49: 27.48 | O49: 1.83
A50: № 534 Сбор.рец. Шк. 2004 Поляковская Ю.И. | B50: Капуста тушеная | C50: 150/5 | D50: 3.30 | E50: 4.90 | F50: 14.10 | G50: 113.00 | H50: 0.05 | I50: 24.70 | J50: 0.00 | K50: 0.00 | L50: 76.95 | M50: 0.00 | N50: 29.50 | O50: 1.13
A51: № 14 Сбор. Шк. 2004 Поляковский Ю.И. 2011 | B51: Какао с молоком | C51: 200 | D51: 3.20 | E51: 3.10 | F51: 13.50 | G51: 93.00 | H51: 0.03 | I51: 0.52 | J51: 0.00 | K51: 0.00 | L51: 108.12 | M51: 0.00 | N51: 19.58 | O51: 0.50
A52: Хим.состав и калорийность российских продуктов питания,табл 6, стр 144 , 2012 Дели + | B52: Хлеб ржаной | C52: 20/20 | D52: 1.32 | E52: 0.24 | F52: 7.92 | G52: 78.24 | H52: 0.03 | I52: 0.00 | J52: 0.00 | K52: 0.28 | L52: 5.80 | M52: 30.00 | N52: 9.40 | O52: 0.78
B53: Итого: | C53: 595 | D53: =SUM(D48:D52) -> 21.55 | E53: 19.80 | F53: 54.88 | G53: 548.02 | H53: 0.25 | I53: 38.60 | J53: 72.13 | K53: 2.37 | L53: 259.70 | M53: 221.01 | N53: 94.96 | O53: 6.44
B55: 6 день
A56: Зим состав и кал рос прод пит, табл 9, стр 144, 2012 | B56: Фрукты (яблоко) | C56: 100 | D56: 0.40 | E56: 0.40 | F56: 9.80 | G56: 47.00 | H56: 0.03 | I56: 10.00 | J56: 0.00 | K56: 0.20 | L56: 16.00 | M56: 11.00 | N56: 9.00 | O56: 2.20
A57: 416/1 сборник 1996 год | B57: Котлеты из говядины | C57: 75 | D57: 11.00 | E57: 15.200 | F57: 10.900 | G57: 225 | H57: 0.050 | I57: 0.070 | J57: 0.000 | K57: 0 | L57: 29.190 | M57: 0.000 | N57: 22.100 | O57: 1.030
A58: № 469/3 сб.рец. 1996 | B58: Макаронные изделия отварные с маслом сливочным | C58: 150/5 | D58: 16.03 | E58: 18.16 | F58: 45.91 | G58: 415.89 | H58: 0.07 | I58: 1.80 | J58: 0.00 | K58: 4.00 | L58: 18.14 | M58: 242.92 | N58: 51.52 | O58: 3.39
A59: № 377 Сбор.рец. На прод-ию для обуч. Во всех образ.учреж-Дели 2017 | B59: Чай с сахаром | C59: 200/10 | D59: 0.13 | E59: 0.02 | F59: 10.20 | G59: 42.00 | H59: 0.00 | I59: 2.83 | J59: 0.00 | K59: 0.01 | L59: 14.05 | M59: 4.40 | N59: 2.40 | O59: 0.34
A60: Хим.состав и калорийность российских продуктов питания,табл 6, стр 144 , 2012 Дели + | B60: Хлеб ржаной | C60: 20 | D60: 1.32 | E60: 0.24 | F60: 7.92 | G60: 78.24 | H60: 0.03 | I60: 0.00 | J60: 0.00 | K60: 0.28 | L60: 5.80 | M60: 30.00 | N60: 9.40 | O60: 0.78
B61: Итого: | C61: 525 | D61: =SUM(D56:D60) -> 28.88 | E61: 34.02 | F61: 84.73 | G61: 808.13 | H61: 0.18 | I61: 14.70 | J61: 0.00 | K61: 4.49 | L61: 83.18 | M61: 288.32 | N61: 94.42 | O61: 7.74
A63: № рецептуры | B63: Наименование блюд | C63: Выход,г | D63: Белки, г | E63: Жиры, г | F63: Углеводы, г | G63: Калорийность, ккал | H63: Витамин B1, мг | I63: Витамин С, мг | J63: Витамин А, мг | K63: Витамин Е, мг | L63: Ca, мг | M63: P, мг | N63: Mg, мг | O63: Fe, мг
B64: 2-ая неделя
B65: 1 день
A66: Зим состав и кал рос прод пит, табл 9, стр 144, 2012 | B66: Фрукты (яблоко) | C66: 100 | D66: 0.8 | E66: 0.20 | F66: 7.5 | G66: 38.0 | H66: 0.06 | I66: 38.00 | J66: 0 | K66: 0.20 | L66: 35.00 | M66: 17.00 | N66: 11.00 | O66: 0.10
A67: №413 Сбор.рец. На прод-ию для питания детей в дошк образоват учрежд-Дели 2017 | B67: Сосиски из говядины (Елабуга) | C67: 100 | D67: 5.460 | E67: 8.840 | F67: 6.550 | G67: 100.49 | H67: 0.040 | I67: 0.210 | J67: 22.220 | K67: 0.320 | L67: 15.540 | M67: 60.150 | N67: 11.640 | O67: 0.480
A68: № 469/3 сб.рец. 1996 | B68: Макаронные изделия отварные с маслом сливочным | C68: 150/5 | D68: 16.03 | E68: 18.16 | F68: 45.91 | G68: 415.89 | H68: 0.07 | I68: 1.80 | J68: 0.00 | K68: 4.00 | L68: 18.14 | M68: 242.92 | N68: 51.52 | O68: 3.39
A69: № 639 сб.шк. 2011 Поляковская Ю.И. | B69: Компот из смеси сухофруктов | C69: 200 | D69: 1.00 | E69: 0.05 | F69: 27.50 | G69: 110.00 | H69: 0.01 | I69: 0.32 | J69: 0.00 | K69: 0.00 | L69: 28.69 | M69: 0.00 | N69: 18.27 | O69: 0.61
A70: Хим.состав и калорийность российских продуктов питания табл 6 стр 134 , 2012 Дели + | B70: Хлеб пшеничный | C70: 25 | D70: 3.04 | E70: 0.32 | F70: 19.68 | G70: 58.45 | H70: 0.04 | I70: 0.00 | J70: 0.00 | K70: 0.44 | L70: 8.00 | M70: 26.00 | N70: 5.60 | O70: 0.44
A71: Хим.состав и калорийность российских продуктов питания,табл 6, стр 144 , 2012 Дели + | B71: Хлеб ржаной | C71: 20 | D71: 1.320 | E71: 0.24 | F71: 7.920 | G71: 39 | H71: 0.034 | I71: 0 | J71: 0 | K71: 0.280 | L71: 5.800 | M71: 30.000 | N71: 9.400 | O71: 0.780
B72: Итого: | C72: 600 | D72: =SUM(D66:D71) -> 27.65 | E72: =SUM(E66:E71) -> 27.81 | F72: 115.06 | G72: 761.95 | H72: 0.26 | I72: 40.33 | J72: 22.22 | K72: 5.24 | L72: 111.17 | M72: 376.07 | N72: 107.43 | O72: 5.80
B74: 2 день
A75: № 19 сб.шк. 2204 | B75: Салат из свеклы с яблоком | C75: 60 | D75: 9.10 | E75: 12.08 | F75: 22.34 | G75: 211.35 | H75: 0.11 | I75: 18.78 | J75: 39.00 | K75: 0.00 | L75: 68.94 | M75: 172.79 | N75: 38.24 | O75: 2.68
A76: № 229 Сбор.рец. На прод-ию для обуч. Во всех образ.учреж-Дели 2017 | B76: Рыба, минтай тушенная в томате с овощами | C76: 50/50 | D76: 9.15 | E76: 5.62 | F76: 7.80 | G76: 105.00 | H76: 0.05 | I76: 3.73 | J76: 5.82 | K76: 2.52 | L76: 39.07 | M76: 162.19 | N76: 48.53 | O76: 0.85
A77: рец. Сб. №216 с. Шк 2004 Поляковский Ю.И 2011г. | B77: Картофель тушеный | C77: 150/5 | D77: 3.30 | E77: 9.20 | F77: 22.70 | G77: 189.00 | H77: 0.13 | I77: 12.40 | J77: 0.00 | K77: 0.00 | L77: 24.24 | M77: 0.00 | N77: 37.00 | O77: 1.44
A78: № 12 Сбор.рец. Шк. Поляковский Ю.И. 2011 | B78: Чай с сахаром и лимоном | C78: 200/7/7 | D78: 0.20 | E78: 0.03 | F78: 9.30 | G78: 37.00 | H78: 0.00 | I78: 1.12 | J78: 0.00 | K78: 0.00 | L78: 2.73 | M78: 0.00 | N78: 0.73 | O78: 0.06
A79: Хим.состав и калорийность российских продуктов питания,табл 6, стр 144 , 2012 Дели + | B79: Хлеб пшеничный | C79: 25 | D79: 3.04 | E79: 0.32 | F79: 19.68 | G79: 58.45 | H79: 0.04 | I79: 0.00 | J79: 0.00 | K79: 0.44 | L79: 8.00 | M79: 26.00 | N79: 5.60 | O79: 0.44
A80: Хим.состав и калорийность российских продуктов питания,табл 6, стр 144 , 2012 Дели + | B80: Хлеб ржаной | C80: 20 | D80: 1.320 | E80: 0.24 | F80: 7.920 | G80: 39 | H80: 0.034 | I80: 0 | J80: 0 | K80: 0.280 | L80: 5.800 | M80: 30.000 | N80: 9.400 | O80: 0.780
B81: Итого: | C81: 560 | D81: =SUM(D75:D80) -> 26.11 | E81: =SUM(E75:E80) -> 27.49 | F81: 89.74 | G81: 639.92 | H81: 0.37 | I81: 36.03 | J81: 44.82 | K81: 3.24 | L81: 148.78 | M81: 390.98 | N81: 139.50 | O81: 6.25
B83: 3 день
A84: Зим состав и кал рос прод пит, табл 9, стр 144, 2012 | B84: Фрукты (яблоко) | C84: 100 | D84: 0.4 | E84: 0.4 | F84: 9.8 | G84: 47 | H84: 0.03 | I84: 10 | J84: 0 | K84: 0.2 | L84: 16 | M84: 11 | N84: 9 | O84: 2.2
A85: № 15 Сбор.рец. На прод-ию для обуч. Во всех образ.учреж-Дели -2017 | B85: Сыр порционно | C85: 15 | D85: 2.63 | E85: 2.66 | F85: 0.00 | G85: 34.33 | H85: 0.00 | I85: 0.07 | J85: 21.00 | K85: 0.04 | L85: 100.00 | M85: 60.00 | N85: 5.50 | O85: 0.07
A86: рец.сб №1 сб.шк. 2004г Поляковский Ю.И. 2011г. | B86: Бутерброд с маслом | C86: 30/10 | D86: 2.40 | E86: 8.60 | F86: 14.60 | G86: 146.00 | H86: 0.05 | I86: 0.00 | J86: 0.00 | K86: 0.00 | L86: 8.10 | M86: 0.00 | N86: 9.90 | O86: 0.62
A87: № 303 Сбор.рец. На прод-ию для обуч. Во всех образ.учреж-Дели 2017 | B87: Каша молочная "Дружба" со сливочным маслом | C87: 200/5 | D87: 6.300 | E87: 8.100 | F87: 33.500 | G87: 232.00 | H87: 0.120 | I87: 0.530 | J87: 0.000 | K87: 0.000 | L87: 127.100 | M87: 0.000 | N87: 37.070 | O87: 0.800
A88: № 12 Сбор.рец. Шк. Поляковский Ю.И. 2011 | B88: Чай с сахаром и молоком | C88: 150/50/7 | D88: 1.40 | E88: 1.40 | F88: 11.20 | G88: 61.00 | H88: 0.01 | I88: 0.26 | J88: 0.00 | K88: 0.00 | L88: 53.06 | M88: 0.00 | N88: 6.03 | O88: 0.07
A89: Хим.состав и калорийность российских продуктов питания,табл 6, стр 144 , 2012 Дели + | B89: Хлеб пшеничный | C89: 25 | D89: 1.320 | E89: 0.24 | F89: 7.920 | G89: 58 | H89: 0.034 | I89: 0 | J89: 0 | K89: 0.280 | L89: 5.800 | M89: 30.000 | N89: 9.400 | O89: 0.780
A90: Хим.состав и калорийность российских продуктов питания,табл 6, стр 144 , 2012 Дели + | B90: Хлеб ржаной | C90: 20 | D90: 1.320 | E90: 0.24 | F90: 7.920 | G90: 39 | H90: 0.034 | I90: 0 | J90: 0 | K90: 0.280 | L90: 5.800 | M90: 30.000 | N90: 9.400 | O90: 0.780
B91: Итого: | C91: 570 | D91: =SUM(D84:D89) -> 14.45 | E91: =SUM(E84:E89) -> 21.40 | F91: 77.02 | G91: 578.78 | H91: 0.25 | I91: 10.86 | J91: 21.00 | K91: 0.52 | L91: 310.06 | M91: 101.00 | N91: 76.90 | O91: 4.54
B93: 4 день
A94: № 25 Сбор.рец. На прод-ию для обуч. Во всех образ.учреж-Дели -2017 | B94: Салат "Школьный" | C94: 60 | D94: 1.00 | E94: 2.10 | F94: 4.00 | G94: 39.00 | H94: 0.01 | I94: 3.99 | J94: 0.00 | K94: 1.62 | L94: 21.28 | M94: 24.38 | N94: 12.42 | O94: 0.79
B95: Котлеты рыбные минтай | C95: 80 | D95: 4.000 | E95: 9.000 | F95: 4.000 | G95: 65 | H95: 0.190 | I95: 4.340 | J95: 0.000 | K95: 1.560 | L95: 61.840 | M95: 174.400 | N95: 24.670 | O95: 1.890
A96: № 312 Сбор.рец. На прод-ию для обуч. Во всех образ.учреж-Дели -2017 | B96: Пюре картофельное с маслом сливочным | C96: 150/5 | D96: 3.13 | E96: 8.43 | F96: 20.51 | G96: 170.25 | H96: 0.14 | I96: 18.16 | J96: 20.00 | K96: 0.23 | L96: 38.18 | M96: 88.10 | N96: 27.75 | O96: 1.02
A97: № 13 Сбор. Шк. 2004 Поляковский Ю.И. 2011 | B97: Кофейный напиток | C97: 200 | D97: 2.80 | E97: 2.80 | F97: 14.70 | G97: 93.00 | H97: 0.02 | I97: 0.39 | J97: 0.00 | K97: 0.00 | L97: 79.40 | M97: 0.00 | N97: 9.14 | O97: 0.08
A98: Хим.состав и калорийность российских продуктов питания табл 6 стр 134 , 2012 Дели + | B98: Хлеб пшеничный | C98: 25 | D98: 1.520 | E98: 0.160 | F98: 9.840 | G98: 58 | H98: 0.022 | I98: 0 | J98: 0 | K98: 0.220 | L98: 4.000 | M98: 13.000 | N98: 2.800 | O98: 0.220
A99: Хим.состав и калорийность российских продуктов питания,табл 6, стр 144 , 2012 Дели + | B99: Хлеб ржаной | C99: 20 | D99: 1.320 | E99: 0.24 | F99: 7.920 | G99: 39 | H99: 0.034 | I99: 0 | J99: 0 | K99: 0.280 | L99: 5.800 | M99: 30.000 | N99: 9.400 | O99: 0.780
B100: Итого: | C100: 540 | D100: =SUM(D94:D99) -> 13.77 | E100: =SUM(E94:E99) -> 22.73 | F100: 60.97 | G100: 465.19 | H100: 0.42 | I100: 26.88 | J100: 20.00 | K100: 3.91 | L100: 210.49 | M100: 329.87 | N100: 86.18 | O100: 4.78
B102: 5 день
A103: Зим состав и кал рос прод пит, табл 9, стр 144, 2012 | B103: Фрукты (яблоко) | C103: 100 | D103: 0.40 | E103: 0.40 | F103: 9.80 | G103: 47.00 | H103: 0.03 | I103: 10.00 | J103: 0.00 | K103: 0.20 | L103: 16.00 | M103: 11.00 | N103: 9.00 | O103: 2.20
A104: № 390,391,392 Сбор.рец. На прод-ию для обуч. Во всех образ.учреж-Дели 2017 | B104: Пельмени "Оригинальные" отварные с маслом сливочным | C104: 180/5 | D104: 13.04 | E104: 15.868 | F104: 40.822 | G104: 346 | H104: 0.145 | I104: 0.333 | J104: 38.547 | K104: 0.007264957265 | L104: 21.021 | M104: 109.791 | N104: 31.778 | O104: 0.831
A105: № 14 Сбор. Шк. 2004 Поляковский Ю.И. 2011 | B105: Какао с молоком | C105: 200 | D105: 3.20 | E105: 3.10 | F105: 13.50 | G105: 93.00 | H105: 0.03 | I105: 0.52 | J105: 0.00 | K105: 0.00 | L105: 108.12 | M105: 0.00 | N105: 19.58 | O105: 0.50
A106: Хим.состав и калорийность российских продуктов питания табл 6 стр 134 , 2012 Дели + | B106: Хлеб пшеничный | C106: 25 | D106: 3.04 | E106: 0.32 | F106: 19.68 | G106: 58.45 | H106: 0.04 | I106: 0.00 | J106: 0.00 | K106: 0.44 | L106: 8.00 | M106: 26.00 | N106: 5.60 | O106: 0.44
A107: Хим.состав и калорийность российских продуктов питания,табл 6, стр 144 , 2012 Дели + | B107: Хлеб ржаной | C107: 20 | D107: 1.32 | E107: 0.24 | F107: 7.92 | G107: 39.12 | H107: 0.03 | I107: 0.00 | J107: 0.00 | K107: 0.28 | L107: 5.80 | M107: 30.00 | N107: 9.40 | O107: 0.78
B108: Итого: | C108: 530 | D108: =SUM(D103:D107) -> 21.00 | E108: =SUM(E103:E107) -> 19.93 | F108: 91.72 | G108: 583.82 | H108: 0.28 | I108: 10.85 | J108: 38.55 | K108: 0.93 | L108: 158.94 | M108: 176.79 | N108: 75.36 | O108: 4.75
B110: 6 день
A111: № 71 Сбор.рец. На прод-ию для обуч. Во всех образ.учреж-Дели -2017 | B111: Винегрет овощной с зеленым горошком | C111: 60 | D111: 0.80 | E111: 1.40 | F111: 4.30 | G111: 33.00 | H111: 0.02 | I111: 3.11 | J111: 0.00 | K111: 0.00 | L111: 13.94 | M111: 0.00 | N111: 9.70 | O111: 0.41
A112: № 451 сб. шк. 2004 Поляковский Ю.И. 2011г. | B112: Шницель из говядины | C112: 75 | D112: 11.000 | E112: 15.200 | F112: 10.900 | G112: 225.0 | H112: 0.050 | I112: 0.070 | J112: 0 | K112: 0.000 | L112: 29.190 | M112: 0.000 | N112: 22.100 | O112: 1.030
A113: № 224 сб. шк. 2004 | B113: Рагу из овощей | C113: 150/5 | D113: 5.62 | E113: 5.04 | F113: 34.99 | G113: 208.50 | H113: 0.50 | I113: 0.00 | J113: 20.00 | K113: 0.50 | L113: 94.11 | M113: 212.33 | N113: 61.70 | O113: 4.69
A114: № 377 Сбор.рец. На прод-ию для обуч. Во всех образ.учреж-Дели 2017 | B114: Чай с сахаром | C114: 200/10 | D114: 0.10 | E114: 0.03 | F114: 9.10 | G114: 25.00 | H114: 0.00 | I114: 0.00 | J114: 0.00 | K114: 0.00 | L114: 0.26 | M114: 0.00 | N114: 0.00 | O114: 0.03
A115: Хим.состав и калорийность российских продуктов питания табл 6 стр 134 , 2012 Дели + | B115: Хлеб пшеничный | C115: 25 | D115: 1.520 | E115: 0.160 | F115: 9.840 | G115: 58 | H115: 0.022 | I115: 0 | J115: 0 | K115: 0.220 | L115: 4.000 | M115: 13.000 | N115: 2.800 | O115: 0.220
A116: Хим.состав и калорийность российских продуктов питания,табл 6, стр 144 , 2012 Дели + | B116: Хлеб ржаной | C116: 20 | D116: 1.320 | E116: 0.240 | F116: 7.920 | G116: 39 | H116: 0.034 | I116: 0 | J116: 0 | K116: 0.280 | L116: 5.800 | M116: 30.000 | N116: 9.400 | O116: 0.780
B117: Итого: | C117: 550 | D117: =SUM(D111:D116) -> 20.36 | E117: =SUM(E111:E116) -> 22.07 | F117: 77.05 | G117: 589.07 | H117: 0.62 | I117: 3.18 | J117: 20.00 | K117: 1.00 | L117: 147.30 | M117: 255.33 | N117: 105.70 | O117: 7.16
B118: ВСЕГО за 12 дней: | C118: =C117+C108+C100+C91+C81+C72+C61+C53+C45+C36+C27+C18 -> 6765 | D118: 248.8667 | E118: 259.5148615 | F118: 988.8432368 | G118: 7142.65853 | H118: 4.069199145 | I118: 238.5631333 | J118: 312.6270085 | K118: 33.44026496 | L118: 2052.991346 | M118: 3031.698415 | N118: 1119.595044 | O118: 67.16734615
B119: В среднем на 1 учащегося в день: | C119: =C118/12 -> 564 | D119: 20.74 | E119: 21.63 | F119: 82.40 | G119: 595.22 | H119: 0.34 | I119: 19.88 | J119: 26.05 | K119: 2.79 | L119: 171.08 | M119: 252.64 | N119: 93.30 | O119: 5.60
